Cogmind - Beta 13 @@@ ROGUE MODE // 2024.04.14 @ 13:16:13 Player: Exceptionally Mediocre Result: Destroyed by as-96772 with Assembled F-torch Performance ------------- Evolutions (0) 0 Regions Visited (2) 400 Robots Destroyed (32) 160 Value Destroyed (630) 630 Prototype IDs (0) 0 Alien Tech Used (0) 0 Bonus (-115) -115 TOTAL SCORE: 1075 Bonus ------- Follower Combat Kills 46 Friendly Fire -161 Cogmind --------- Core Integrity 0/250 Matter 93/300 Energy 103/125 System Corruption 0% Temperature Warm (122) Movement Rolling (140) Ox4 Location -10/Mines Parts ------- > --- POWER (1) -------- Light Ion Engine > --- PROPULSION (2) --- Wheel Wheel > --- UTILITY (2) ------ Huge Storage Unit Core Shielding > --- WEAPON (2) ------- Autogun Autogun > --- INVENTORY (25) --- Light Nuclear Core Light Nuclear Core Wheel Heat Sink Small Battery (100) Large Matter Pod (150) Sensor Array Signal Interpreter Targeting Computer Weapon Shielding Shield Generator Shield Generator Hacking Suite Beam Cannon Light Assault Rifle Mining Laser Peak State ------------ > --- POWER ------------ Ion Engine > --- PROPULSION ------- Wheel Wheel > --- UTILITY ---------- Huge Storage Unit Improved Terrain Scanner > --- WEAPON ----------- Assault Rifle Autogun > --- INVENTORY -------- Light Ion Engine Light Ion Engine Light Ion Engine Light Ion Engine Wheel Wheel Wheel Wheel Large Matter Pod Visual Processing Unit Targeting Computer Core Shielding Shield Generator Shield Generator EM Pulse Gun Light Assault Rifle Autogun Autogun Autogun Grenade Launcher Mining Laser [Rating: 12] Favorites ----------- Power Ion Engine Engine Ion Engine Propulsion Wheel Wheel Wheel Utility Huge Storage Unit Device Improved Terrain Scanner Storage Huge Storage Unit Protection Core Shielding Weapon Autogun Energy Gun EM Pulse Gun Ballistic Gun Autogun Launcher Grenade Launcher Build | -11 -10 -10 ------- Run | Yrd Mat Min Slots Evolved . | . . . Power . | . . . Propulsion . | . . . Utility . | . . . Weapon . | . . . Parts Attached 27 | 8 8 11 Power 5 | 1 2 2 Engine 5 | 1 2 2 Core . | . . . Reactor . | . . . Propulsion 9 | 2 1 6 Treads . | . . . Leg . | . . . Wheel 9 | 2 1 6 Hover . | . . . Flight . | . . . Utility 4 | 2 2 . Device 1 | 1 . . Storage 2 | 1 1 . Processor . | . . . Hackware . | . . . Protection 1 | . 1 . Artifact . | . . . Weapon 9 | 3 3 3 Energy Gun 1 | 1 . . Energy Cannon . | . . . Ballistic Gun 7 | 2 2 3 Ballistic Cannon . | . . . Launcher 1 | . 1 . Special Weapon . | . . . Impact Weapon . | . . . Slashing Weapon . | . . . Piercing Weapon . | . . . Special Melee Weapon . | . . . Unidentified Prototypes . | . . . Parts Lost 12 | . 1 11 Power 2 | . . 2 Propulsion 6 | . . 6 Utility . | . . . Weapon 4 | . 1 3 Highest Loss Streak 9 | . 1 9 To Critical Strikes 1 | . . 1 Average Slot Usage (%) 99 | . 100 98 Engine 13 | . 14 13 Wheel 27 | . 28 27 Device 4 | . 7 . Storage 14 | . 14 14 Protection 9 | . 6 14 Ballistic Gun 22 | . 28 14 Launcher 5 | . . 12 Naked Turns . | . . . Heaviest Build 92 | 12 92 92 Greatest Support 20 | 20 20 20 Greatest Overweight (x) 9 | 3 4 9 Average Overweight (x) 3 | . 3 4 Largest Inventory Capacity 25 | 8 25 25 Average Capacity 23 | 7 24 25 Most Carried 25 | 8 25 25 Average Carried 20 | 3 18 24 Final Capacity 25 | 8 25 25 Final Carried 25 | 8 25 16 Class Distribution -------------------- 100% | Mutant Dominant Class ---------------- Mutant | -10/Materials Mutant | -10/Mines Resources | -11 -10 -10 ----------- Run | Yrd Mat Min Matter Collected 878 | 304 472 102 Remotely . | . . . Salvage Created 1054 | 150 645 259 Parts 72 | 10 43 19 Haulers Intercepted 1 | . 1 . Recyclers Shooed 1 | . 1 . Parts Field Recycled . | . . . Retrieved Matter . | . . . Parts Self-Destructed . | . . . Prevented . | . . . Kills | -11 -10 -10 ------- Run | Yrd Mat Min Combat Hostiles Destroyed 26 | . 11 15 Guns 18 | . 11 7 AOE 8 | . . 8 Classes Destroyed 10 | 2 5 3 Worker 2 | . 1 1 Builder 2 | . . 2 Tunneler 6 | 3 . 3 Hauler 1 | . 1 . Recycler 2 | 1 1 . Operator 1 | . 1 . Watcher 2 | . 2 . Swarmer 2 | . . 2 Grunt 14 | . 11 3 Assembled 11 | . . 11 Best Kill Streak 8 | 4 3 8 Combat Bots Only 6 | . 2 6 Max Kills in Single Turn 3 | 1 1 3 Gunslinging . | . . . Exploded 2 | . . 2 Melee . | . . . Uniques/NPCs Destroyed . | . . . Combat | -11 -10 -10 -------- Run | Yrd Mat Min Hostile Shots Fired 141 | . 52 89 Missed 39 | . 15 24 Damage Taken 1385 | . 462 923 Core 258 | . 119 139 Absorbed by Shields . | . . . Redirected to Shielding 36 | . 6 30 Core Remaining (%) 100 | 100 . . Volleys Fired 88 | 6 45 37 Largest 2 | 2 2 2 Hottest 46 | 40 46 46 Shots Fired 149 | 12 90 47 Gun 139 | 12 90 37 Cannon . | . . . Launcher 10 | . . 10 Special . | . . . Kinetic 139 | 12 90 37 Thermal . | . . . Explosive 10 | . . 10 Electromagnetic . | . . . Robot Hit Streak 11 | 7 11 9 Robot Miss Streak 3 | 1 3 2 Penetration Max . | . . . Secondary Targets . | . . . Shots Hit Robots 103 | 7 61 35 Core Hits 75 | 5 31 39 Critical Kills . | . . . Critical Parts Destroyed . | . . . Critical Strikes . | . . . Melee Attacks . | . . . Impact . | . . . Slashing . | . . . Piercing . | . . . Sneak Attacks . | . . . Combat Hostiles . | . . . Follow-up Attacks . | . . . Damage Inflicted 2161 | 78 770 1313 Guns 1318 | 78 770 470 Cannons . | . . . Explosions 842 | . . 842 Melee . | . . . Ramming 1 | . . 1 Kinetic 1318 | 78 770 470 Thermal . | . . . Explosive 842 | . . 842 Electromagnetic . | . . . Impact . | . . . Slashing . | . . . Piercing . | . . . Highest Corruption . | . . . Average Corruption . | . . . Corruption Purged . | . . . Corruption Blocked . | . . . Overload Shots . | . . . Overflow Damage 3 | . . 3 Projectiles . | . . . Explosions 3 | . . 3 Melee . | . . . Knockbacks . | . . . Impact . | . . . Kinetic . | . . . Secondary . | . . . Self-Inflicted Damage 30 | . . 30 Shots 2 | . . 2 Rammed 2 | . . 2 Targets Rammed 2 | . . 2 Kicked . | . . . Crushed . | . . . Highest Temperature 142 | . 30 142 Average Temperature 24 | . 9 41 Received Heat Transfer 772 | . 288 484 Siege Activations . | . . . Robots Corrupted . | . . . Combat Hostiles . | . . . Parts Fried . | . . . Impact Corruptions . | . . . Robots Melted . | . . . Combat Hostiles . | . . . Parts Melted . | . . . Heat Transferred . | . . . Parts Sabotaged . | . . . Parts Stolen . | . . . Parts Stripped . | . . . Power Chain Reactions . | . . . Alert | -11 -10 -10 ------- Run | Yrd Mat Min Peak Influence 220 | 20 220 199 Initial 54 | . 13 54 Average 76 | 8 86 72 Maximum Alert Level 1 | . 1 . Low Security (%) 97 | 100 96 100 Level 1 2 | . 3 . Level 2 . | . . . Level 3 . | . . . Level 4 . | . . . Level 5 . | . . . High Security . | . . . Max Security . | . . . Squads Dispatched 2 | . 2 . Investigation 1 | . 1 . Extermination . | . . . Reinforcement 1 | . 1 . Assault . | . . . Garrison . | . . . Intercept . | . . . Searches Triggered . | . . . Construction Impeded . | . . . Haulers Reinforced . | . . . Active Scanning Responses . | . . . Cargo Convoy Interrupts . | . . . Stealth | -11 -10 -10 --------- Run | Yrd Mat Min Distress Signals 1 | . 1 . Communications Jammed . | . . . Distress Signals . | . . . Times Spotted 45 | . 22 23 Peak Tracking Total 11 | . 3 11 Tactical Retreats 3 | . 2 1 Traps | -11 -10 -10 ------- Run | Yrd Mat Min Traps Triggered 1 | . 1 . Indirectly . | . . . Trap Hack Attempts . | . . . Triggered . | . . . Disarmed . | . . . Reprogrammed . | . . . Reused . | . . . Traps Extracted . | . . . Installed . | . . . Triggered . | . . . Machines | -11 -10 -10 ---------- Run | Yrd Mat Min Machines Disabled . | . . . Max in Single Turn . | . . . Machines Repaired . | . . . Machines Dismantled . | . . . Machines Sabotaged . | . . . Overloaded Fab Kills . | . . . Hacking | -11 -10 -10 --------- Run | Yrd Mat Min Machines Accessed 6 | . 6 . Terminals 5 | . 5 . Fabricators . | . . . Repair Stations . | . . . Recycling Units 1 | . 1 . Scanalyzers . | . . . Garrison Access . | . . . Total Hacks 11 | . 11 . Successful 7 | . 7 . Failed 4 | . 4 . Catastrophic . | . . . Database Lockouts . | . . . Manual 9 | . 9 . Terminals 9 | . 9 . Fabricators . | . . . Repair Stations . | . . . Recycling Units 2 | . 2 . Scanalyzers . | . . . Garrison Access . | . . . Terminal Hacks . | . . . Fabricator Hacks . | . . . Repair Station Hacks . | . . . Recycling Unit Hacks 2 | . 2 . Retrieve Components 2 | . 2 . Scanalyzer . | . . . Garrison Access Hacks . | . . . Unauthorized Hacks 5 | . 5 . Terminals 5 | . 5 . Botnet 5 | . 5 . Fabricators . | . . . Repair Stations . | . . . Recycling Units . | . . . Scanalyzers . | . . . Garrison Access . | . . . Data Cores Recovered . | . . . Used . | . . . Hacking Detections 3 | . 3 . Full Trace Events . | . . . Feedback Events . | . . . Feedback Blocked . | . . . Robot Schematics Acquired . | . . . Robots Built . | . . . Authchips . | . . . Time . | . . . Total Robot Build Rating . | . . . Part Schematics Acquired . | . . . Parts Built . | . . . Authchips . | . . . Time . | . . . Total Part Build Rating . | . . . Parts Repaired . | . . . Time . | . . . Parts Recycled . | . . . Recycled Matter . | . . . Retrieved Matter . | . . . Retrieved Components . | . . . Parts Scanalyzed . | . . . Part Schematics Acquired . | . . . Parts Damaged . | . . . Bothacking | -11 -10 -10 ------------ Run | Yrd Mat Min Used RIF Installer . | . . . Robots Hacked . | . . . Non-combat . | . . . Combat . | . . . Robot Hacks Applied . | . . . Relay Couplers Released . | . . . Fabnet Peak Effective % . | . . . Robots Rewired . | . . . Allies Hacked . | . . . Hacks Repelled . | . . . Allies | -11 -10 -10 -------- Run | Yrd Mat Min Total Allies 3 | . . 3 Largest Group 3 | . . 3 Highest-Rated Group 40 | . . 40 Highest-Rated Ally 16 | . . 16 Total Orders . | . . . Ally Attacks 13 | . . 13 Total Damage 103 | . . 103 Kills 2 | . . 2 Allies Corrupted . | . . . Allies Melted . | . . . Intel | -11 -10 -10 ------- Run | Yrd Mat Min Robot Analysis Total . | . . . Derelict Logs Recovered 1 | . . 1 Drone Launches . | . . . Drone Recoveries . | . . . Exploration | -11 -10 -10 ------------- Run | Yrd Mat Min Turns Passed 1690 | 91 910 689 Spaces Moved 963 | 60 487 416 Core 9 | 9 . . Treads . | . . . Legs . | . . . Wheels 954 | 51 487 416 Hover . | . . . Flight . | . . . Fastest Speed 50 | 50 80 140 Average Speed 136 | 88 138 141 Slowest Speed 215 | 200 140 215 Overloaded Moves . | . . . Propulsion Burnouts . | . . . Robots Hopped . | . . . Cave-ins Triggered . | . . . Exploration Rate (%) 50 | 4 65 81 Regions Visited 2 Branch Regions 1 Pre-discovered Areas . | . . . Known Exits Taken . | . . . Unknown Exits Taken 2 | 1 1 . Scrap Searched 1 | . . 1 Spaces Dug . | . . . Terrain Destroyed 63 | . . 63 Melee . | . . . Projectile . | . . . AOE 63 | . . 63 Terrain Rammed . | . . . Walls Destroyed . | . . . Machines Disabled . | . . . Actions | -11 -10 -10 --------- Run | Yrd Mat Min Total 1208 | 83 643 482 Wait 79 | . 75 4 Move 961 | 59 486 416 Hop . | . . . Pick Up 38 | 9 22 7 Fast Attach 7 | 7 . . Attach 12 | . 1 11 Detach . | . . . Swap 8 | 1 7 . Drop 13 | 1 7 5 Fire 88 | 6 45 37 Melee . | . . . Ram 2 | . . 2 Kick . | . . . Crush . | . . . Escape Stasis . | . . . Rewire . | . . . Trap . | . . . Miscellaneous . | . . . Route ------- -11/Scrapyard -10/Materials (discovered 3 exits: [*Mat x2] / [*Min]) -10/Mines (discovered 2 exits: [*Mat x2]) History --------- Turn | Location | Event 33 | -11/Scrapyard | Discovered new exit (range 16) 92 | -11/Scrapyard | Entered Materials 312 | -10/Materials | Build established: Mutant 564 | -10/Materials | Discovered new exit (range 10) 905 | -10/Materials | Discovered new exit (range 7) 975 | -10/Materials | Discovered new exit (range 16) 1002 | -10/Materials | Entered Mines 1030 | -10/Mines | Discovered new exit (range 12) 1127 | -10/Mines | Assisted by bots powering up and referring to "LRC-V3" 1333 | -10/Mines | Discovered new exit (range 11) 1356 | -10/Mines | Learned 8 Materials zone layouts 1598 | -10/Mines | Assembled infested the area 1630 | -10/Mines | Core integrity fell below 50% 1663 | -10/Mines | Core integrity fell below 20% 1666 | -10/Mines | Lost 3 allies 1691 | -10/Mines | Destroyed by as-96772 with Assembled F-torch Last Messages --------------- 01650_ U-05 Engineer builds a Wall. 01651_ Wheel destroyed. 01654_ U-05 Engineer builds a Wall. 01654_ Lgt. Ion Engine destroyed. 01657_ Autogun destroyed. 01658_ Wheel destroyed. 01658_ U-05 Engineer system corrupted by crushing effect. 01659_ U-05 Engineer destroyed. 01660_ The unstable cave ceiling collapses. 01661_ Autogun destroyed. 01673_ as-47063 destroyed. 01676_ as-46113 destroyed. 01678_ as-42738 destroyed. 01683_ as-95341 destroyed. 01685_ Critical hit (Burn: +80). 01686_ Wheel destroyed. 01688_ Critical hit (Destroy). 01688_ Wheel destroyed. 01691_ as-66674 destroyed. Map ----- +----------------------------------------------------+ | ????????????# #?????????# ##???????????????#### | | ????????????# #????????## ##???????????????# | | ????????????# #???????## ####????????##### "" | | ????????????# #??????## ##???????# "" | | ?????######## #?????## #####???# ### "" | | ?????# #??#### #???# #?# | | ?????# ########?## #### #???# #?# | | ?????#!#???????## ## ##??# #???# #?#### | | ?????#!#???????# ##?###??## ##### ####?? | | ?????#%#???????# ##???????## # # #?? | | ?????#[#???????## #????????# = [ = ## #?? | | ?????# #????????## ##????##### =# #### #?? | | ?????#*#?????????## ##????## ## #####??# ### | | ?????# #??????????## #????## #??????# | | ?##### ##?????????## ###### < """ #??????# ### | | ## ## ##??????### """ #?????# #?# | | # ######## """ #?????# #?? | | ## ######### #?????# #?? | | ?## %##???????## #?????# #?? | | ??## #### ##?????????### ##????? #?? | | ???# ##??# ##???????????#### #?????? #?? | | ???## ##???## ##?????????????? #?????? ##?? | | ????####????# ! #####?????????? #??????#???? | | ??????????### #% aa ##????????? #??????????? | | ?????# ## ## a%% #????????? ????????#??? | | ?????# = # ###@ #????????? ???????? ? | | ?????# #?####????????????????? | | ????# % ##??????????????????????? | | ????# % ##??????????????????????? | | ????## ## ####???????????????????????? | | ?????# #???????????????????????????# | | ???? #??????????????????????????## | | ???"" """ ### ??????????????????????????#### | | ????? """ #??### ???????????????????????????? | | ????" """ ?????## #??????????????????????????? | | ??? ????????######??????????????????????????? | | ???"???"?????????????????????????????????????????? | | ?????????????????????????????????????????????????? | | ?????????????????????????????????????????????????? | | ?????????????????????????????????????????????????? | | ?????????????????????????????????????????????????? | | ?????????????????????????????????????????????????? | | ?????????????????????????????????????????????????? | | ?????????????????????????????????????????????????? | | ?????????????????????????????????????????????????? | | ?????????????????????????????????????????????????? | | ?????????????????????????????????????????????????? | | ?????????????????????????????????????????????????? | | | | | +----------------------------------------------------+ Best States ------------- Heat Dissipation 25 Energy Generation 10 Energy Capacity 250 Matter Stores 300 Matter Capacity 300 Sight Range 16 Terrain Scan Range 16 Terrain Scan Density 10 Core Shielding 20 Evasion (%) 44 Item Schematics ----------------- None Robot Schematics ------------------ None Fabricated ------------ Nothing Alien Tech Used ----------------- None Achievements -------------- None Challenges ------------ None Game ------ Seed ThunderCloakWeb Manual? 0 Play Time 00:18:06 Cumulative 52.3 hours Start 2024.04.14 @ 13:01:18 End 2024.04.14 @ 13:16:13 Sessions 1 Manual Loads 0 Difficulty Rogue Special Mode None Game No. 57 Rogue 57 Adventurer 0 Explorer 0 Win Type - Total 0 Types 0/0/0/0/0/0/0/0/0 Lore% 17 Gallery% 37 Achievement% 28 Wizard Run 0 Options --------- Layout 1 ASCII 0 Keyboard 1 Movement Vi Keybinds 0 Fullscreen 1 Font 24/Smallcaps Map View 50x35 Zoom Use 0% Tactical HUD 1 Map Filters NONE Filters NONE Steam 1 RUN: 9d6bda80-ba91-427b-88e9-f5d5083de711